lending/lending_fUSD_20241228
["ID","MTS","AMOUNT","RATE_DAILY","PERIOD"]
[346917007,1735377032066,-482.386565,0.00011863,2]
[346917201,1735377037433,-340.09451746,0.00011863,2]
[346917202,1735377037543,-4793.72298105,0.00011863,2]
[346917203,1735377037563,-255.89773735,0.00011863,2]
[346917204,1735377037575,-950.4,0.00011863,2]
[346917205,1735377037599,-886.1572773,0.00011863,2]
[346917206,1735377037608,-150.0,0.00011873,2]
[346917207,1735377037617,-150.0,0.00011879,2]
[346917208,1735377037627,-150.0,0.00011904,2]
[346917209,1735377037637,-150.0,0.00011917,2]
[346917210,1735377037646,-150.0,0.00011935,2]
[346917211,1735377037656,-206.31,0.00011947,2]
[346917212,1735377037665,-150.0,0.00011955,2]
[346917213,1735377037675,-793.16,0.00011993,2]
[346917214,1735377037684,-150.0,0.00011993,2]
[346917215,1735377037693,-150.0,0.00011997,2]
[346917216,1735377037703,-1076.51479416,0.00012,2]
[346917217,1735377037712,-150.0,0.00012012,2]
[346917219,1735377037721,-150.0,0.00012031,2]
[346917221,1735377037731,-150.0,0.00012059,2]
[346917223,1735377037740,-150.0,0.0001207,2]
[346917225,1735377037749,-250.0,0.00012087,2]
[346917227,1735377037759,-150.0,0.00012108,2]
[346917229,1735377037768,-150.0,0.00012121,2]
[346917231,1735377037778,-150.0,0.00012121,2]
[346917233,1735377037787,-150.0,0.00012146,2]
[346917235,1735377037796,-150.0,0.00012182,2]
[346917237,1735377037806,-150.0,0.00012184,2]
[346917239,1735377037815,-413.03,0.00012199,2]
[346917241,1735377037824,-150.0,0.00012222,2]
[346917243,1735377037834,-150.0,0.00012229,2]
[346917245,1735377037843,-150.0,0.00012244,2]
[346917247,1735377037853,-150.0,0.00012261,2]
[346917249,1735377037862,-150.0,0.00012299,2]
[346917251,1735377037871,-150.0,0.00012306,2]
[346917253,1735377037881,-150.0,0.00012337,2]
[346917255,1735377037891,-150.0,0.00012337,2]
[346917257,1735377037901,-450.261,0.0001235,2]
[346917259,1735377037910,-150.0,0.00012368,2]
[346917261,1735377037920,-150.0,0.00012375,2]
[346917263,1735377037929,-1040.20650337,0.0001239,2]
[346917267,1735377037952,-3835.64,0.0001239,2]
[346917269,1735377037967,-552.51472136,0.0001239,2]
[346917274,1735377037986,-335.98740466,0.0001239,2]
[346917431,1735377039467,-77.65137061,0.0001239,2]
[346917433,1735377039481,-150.0,0.00012413,2]
[346917435,1735377039490,-381.06,0.00012421,2]
[346917437,1735377039500,-374.5,0.00012421,2]
[346917439,1735377039509,-150.0,0.0001243,2]
[346917441,1735377039518,-150.0,0.00012445,2]
[346917443,1735377039528,-150.0,0.00012452,2]
[346917445,1735377039537,-150.0,0.0001249,2]
[346917447,1735377039546,-150.0,0.00012492,2]
[346917449,1735377039556,-150.0,0.00012528,2]
[346917451,1735377039565,-200.0,0.00012535,2]
[346917453,1735377039574,-150.0,0.00012553,2]
[346917455,1735377039583,-150.0,0.00012553,2]
[346917457,1735377039592,-150.0,0.00012566,2]
[346917459,1735377039601,-150.0,0.00012604,2]
[346917461,1735377039611,-150.0,0.00012615,2]
[346917463,1735377039620,-150.0,0.00012643,2]
[346917465,1735377039630,-150.0,0.00012662,2]
[346917466,1735377039640,-150.0,0.00012677,2]
[346917469,1735377039649,-150.0,0.00012681,2]
[346917470,1735377039659,-150.0,0.00012719,2]
[346917473,1735377039670,-150.0,0.00012739,2]
[346917475,1735377039679,-1130.43556777,0.0001274,2]
[346917477,1735377039687,-1108.2502805,0.0001274,2]
[346917478,1735377039697,-1029.42645664,0.0001274,2]
[346917481,1735377039707,-150.0,0.00012757,2]
[346917483,1735377039716,-150.0,0.0001277,2]
[346917485,1735377039725,-150.0,0.00012795,2]
[346917487,1735377039734,-5290.37561291,0.00012797,2]
[346917489,1735377039743,-163.81240349,0.00012798,2]
[346917491,1735377039752,-1000.0,0.000128,2]
[346917493,1735377039761,-150.0,0.00012801,2]
[346917495,1735377039770,-6053.07416045,0.00012805,2]
[346917496,1735377039779,-5290.37561288,0.00012808,2]
[346917498,1735377039788,-5290.37561288,0.0001282,2]
[346917500,1735377039797,-150.321,0.00012829,2]
[346917502,1735377039806,-1266.0,0.00012829,2]
[346917504,1735377039815,-1582.50167056,0.00012829,2]
[346917510,1735377039855,-429.49832944,0.00012829,2]
[346917512,1735377039864,-150.0,0.00012829,2]
[346917514,1735377039873,-91.48547855,0.00012829,2]
[346917516,1735377039885,-324.97224998,0.00012829,2]
[346917518,1735377039896,-148.54227147,0.00012829,2]
[346917520,1735377039905,-633.0,0.00012829,2]
[346917522,1735377039914,-218.44771853,0.00012829,2]
[346917524,1735377039925,-677.71179332,0.00012829,2]
[346917528,1735377039945,-1003.84048815,0.00012829,2]
[346917530,1735377039954,-920.0,0.00012829,2]
[346917532,1735377039963,-565.42158291,0.00012829,2]
[346917535,1735377039986,-1923.54,0.00012829,2]
[346917537,1735377039997,-280.77105988,0.00012829,2]
[346917568,1735377042865,-1002.26735721,0.00012829,2]
[346917569,1735377042875,-819.0,0.00012829,2]
[346917570,1735377042884,-1257.0,0.00012829,2]
[346917572,1735377042893,-536.0,0.00012829,2]
[346917573,1735377042902,-185.52864229,0.00012829,2]
[346917574,1735377042915,-3499.47135771,0.00012829,2]
[346917575,1735377042924,-3890.0,0.00012829,2]
[346917576,1735377042933,-9602.0,0.00012829,2]
[346917577,1735377042942,-150.0,0.00012829,2]
[346917578,1735377042952,-1171.0,0.00012829,2]
[346917579,1735377042961,-1102.0,0.00012829,2]
[346917580,1735377042971,-5290.37561288,0.00012831,2]
[346917581,1735377042980,-150.0,0.00012834,2]
[346917582,1735377042989,-5290.37561288,0.00012843,2]
[346917583,1735377042999,-5290.37561288,0.00012854,2]
[346917584,1735377043008,-150.0,0.00012863,2]
[346917585,1735377043018,-5290.37561288,0.00012866,2]
[346917586,1735377043027,-150.0,0.00012872,2]
[346917587,1735377043037,-5290.37561288,0.00012877,2]
[346917588,1735377043046,-150.0,0.00012878,2]
[346917589,1735377043055,-5194.59295811,0.0001288,2]
[346917590,1735377043064,-5290.37561288,0.00012889,2]
[346917591,1735377043074,-1439.147,0.00012895,2]
[346917592,1735377043083,-180.17439639,0.00012895,2]
[346917593,1735377043091,-2000.0,0.00012896,2]
[346917594,1735377043101,-500.0,0.00012896,2]
[346917595,1735377043111,-945.68,0.00012896,2]
[346917596,1735377043120,-2795.64,0.00012896,2]
[346917597,1735377043130,-660.31,0.00012896,2]
[346917598,1735377043139,-1617.82,0.00012896,2]
[346917599,1735377043149,-500.0,0.00012896,2]
[346917600,1735377043158,-1417.63,0.00012896,2]
[346917601,1735377043167,-500.0,0.00012896,2]
[346917602,1735377043177,-500.0,0.00012896,2]
[346917603,1735377043186,-500.0,0.00012896,2]
[346917604,1735377043196,-500.0,0.00012896,2]
[346917605,1735377043205,-500.0,0.00012896,2]
[346917606,1735377043214,-500.0,0.00012896,2]
[346917607,1735377043223,-500.0,0.00012896,2]
[346917608,1735377043232,-806.25,0.00012896,2]
[346917609,1735377043241,-500.0,0.00012896,2]
[346917610,1735377043251,-500.0,0.00012896,2]
[346917611,1735377043260,-500.0,0.00012896,2]
[346917612,1735377043269,-500.0,0.00012896,2]
[346917613,1735377043278,-500.0,0.00012896,2]
[346917614,1735377043287,-500.0,0.00012896,2]
[346917615,1735377043296,-500.0,0.00012896,2]
[346917616,1735377043305,-500.0,0.00012896,2]
[346917617,1735377043314,-1183.97,0.00012896,2]
[346917618,1735377043323,-500.0,0.00012897,2]
[346917619,1735377043332,-500.0,0.00012897,2]
[346917620,1735377043341,-500.0,0.00012897,2]
[346917621,1735377043351,-500.0,0.00012897,2]
[346917622,1735377043360,-500.0,0.00012897,2]
[346917623,1735377043370,-500.0,0.00012897,2]
[346917624,1735377043380,-500.0,0.00012897,2]
[346917625,1735377043390,-500.0,0.00012897,2]
[346917626,1735377043399,-500.0,0.00012897,2]
[346917627,1735377043409,-500.0,0.00012897,2]
[346917628,1735377043419,-500.0,0.00012897,2]
[346917629,1735377043429,-500.0,0.00012897,2]
[346917630,1735377043438,-500.0,0.00012897,2]
[346917631,1735377043447,-500.0,0.00012897,2]
[346917632,1735377043456,-500.0,0.00012897,2]
[346917633,1735377043466,-500.0,0.00012897,2]
[346917634,1735377043475,-500.0,0.00012897,2]
[346917635,1735377043484,-500.0,0.00012897,2]
[346917636,1735377043494,-500.0,0.00012897,2]
[346917637,1735377043503,-500.0,0.00012897,2]
[346917638,1735377043512,-511.30739061,0.00012897,2]
[346917639,1735377043523,-500.0,0.00012897,2]
[346917640,1735377043532,-500.0,0.00012897,2]
[346917641,1735377043541,-500.0,0.00012897,2]
[346917642,1735377043551,-500.0,0.00012897,2]
[346917643,1735377043560,-500.0,0.00012897,2]
[346917644,1735377043569,-500.0,0.00012897,2]
[346917645,1735377043578,-500.0,0.00012897,2]
[346917646,1735377043589,-500.0,0.00012897,2]
[346917647,1735377043598,-500.0,0.00012897,2]
[346917648,1735377043608,-500.0,0.00012897,2]
[346917649,1735377043618,-430.7532249,0.00012897,2]
[346917650,1735377043647,-69.2467751,0.00012897,2]
[346917651,1735377043656,-357.42959766,0.00012897,2]
[346917652,1735377043668,-142.57040234,0.00012897,2]
[346917653,1735377043677,-500.0,0.00012897,2]
[346917654,1735377043687,-500.0,0.00012897,2]
[346917655,1735377043696,-500.0,0.00012897,2]
[346917656,1735377043707,-500.0,0.00012897,2]
[346917657,1735377043717,-500.0,0.00012897,2]
[346917658,1735377043726,-500.0,0.00012897,2]
[346917659,1735377043736,-500.0,0.00012897,2]
[346917660,1735377043746,-475.60735754,0.00012897,2]
[346917661,1735377043755,-500.0,0.00012897,2]
[346917662,1735377043764,-500.0,0.00012897,2]
[346917663,1735377043773,-500.0,0.00012897,2]
[346917664,1735377043782,-500.0,0.00012897,2]
[346917665,1735377043792,-500.0,0.00012897,2]
[346917666,1735377043801,-500.0,0.00012897,2]
[346917667,1735377043810,-500.0,0.00012897,2]
[346917668,1735377043820,-500.0,0.00012897,2]
[346917669,1735377043830,-500.0,0.00012897,2]
[346917670,1735377043840,-500.0,0.00012897,2]
[346917671,1735377043849,-500.0,0.00012897,2]
[346917672,1735377043858,-500.0,0.00012897,2]
[346917673,1735377043868,-501.16278578,0.00012897,2]
[346917674,1735377043878,-501.88087826,0.00012897,2]
[346917675,1735377043887,-500.0,0.00012897,2]
[346917676,1735377043897,-503.32040501,0.00012897,2]
[346917677,1735377043906,-500.00038097,0.00012897,2]
[346917678,1735377043915,-500.0,0.00012897,2]
[346917679,1735377043926,-501.39766772,0.00012897,2]
[346917680,1735377043935,-501.77125225,0.00012897,2]
[346917681,1735377043944,-500.0,0.00012897,2]
[346917682,1735377043955,-502.39613314,0.00012897,2]
[346917683,1735377043964,-500.0,0.00012897,2]
[346917684,1735377043973,-500.0,0.00012897,2]
[346917685,1735377043983,-500.0,0.00012897,2]
[346917686,1735377043993,-500.0,0.00012897,2]
[346917687,1735377044002,-500.0,0.00012897,2]
[346917688,1735377044011,-500.0,0.00012897,2]
[346917689,1735377044022,-500.0,0.00012897,2]
[346917690,1735377044031,-500.0,0.00012897,2]
[346917691,1735377044041,-500.0,0.00012897,2]
[346917692,1735377044051,-500.0,0.00012897,2]
[346917693,1735377044060,-500.0,0.00012897,2]
[346917694,1735377044069,-500.0,0.00012897,2]
[346917695,1735377044078,-500.0,0.00012897,2]
[346917696,1735377044089,-500.0,0.00012897,2]
[346917697,1735377044098,-500.0,0.00012897,2]
[346917698,1735377044108,-500.0,0.00012897,2]
[346917699,1735377044116,-500.0,0.00012897,2]
[346917700,1735377044126,-500.0,0.00012897,2]
[346917701,1735377044136,-500.0,0.00012897,2]
[346917702,1735377044145,-500.0,0.00012897,2]
[346917703,1735377044154,-500.0,0.00012897,2]
[346917704,1735377044163,-500.0,0.00012897,2]
[346917705,1735377044172,-500.0,0.00012897,2]
[346917706,1735377044182,-500.0,0.00012897,2]
[346917707,1735377044191,-500.0,0.00012897,2]
[346917708,1735377044200,-500.0,0.00012897,2]
[346917709,1735377044209,-500.0,0.00012897,2]
[346917710,1735377044218,-509.38343706,0.00012897,2]
[346917711,1735377044227,-500.0,0.00012897,2]
[346917712,1735377044236,-500.0,0.00012897,2]
[346917713,1735377044246,-502.55180863,0.00012897,2]
[346917714,1735377044256,-500.0,0.00012897,2]
[346917715,1735377044266,-500.0,0.00012897,2]
[346917716,1735377044274,-502.53714182,0.00012897,2]
[346917717,1735377044283,-501.4644752,0.00012897,2]
[346917718,1735377044292,-502.53061069,0.00012897,2]
[346917719,1735377044301,-502.71278447,0.00012897,2]
[346917720,1735377044311,-501.63896675,0.00012897,2]
[346917721,1735377044320,-501.36857068,0.00012897,2]
[346917722,1735377044329,-500.0,0.00012897,2]
[346917723,1735377044339,-501.24800431,0.00012897,2]
[346917724,1735377044349,-500.0,0.00012897,2]
[346917725,1735377044359,-500.0,0.00012897,2]
[346917726,1735377044368,-500.0,0.00012897,2]
[346917727,1735377044378,-500.0,0.00012897,2]
[346917728,1735377044387,-975.88,0.00012897,2]
[346917729,1735377044396,-500.0,0.00012897,2]
[346917730,1735377044405,-1222.88,0.00012897,2]
[346917731,1735377044414,-500.0,0.00012897,2]
[346917732,1735377044424,-500.0,0.00012897,2]
[346917733,1735377044434,-4065.14,0.00012897,2]
[346917734,1735377044445,-500.0,0.00012897,2]
[346917735,1735377044455,-500.0,0.00012897,2]
[346917736,1735377044466,-500.0,0.00012897,2]
[346917737,1735377044478,-500.0,0.00012897,2]
[346917738,1735377044487,-500.0,0.00012897,2]
[346917739,1735377044496,-5369.2,0.00012897,2]
[346917740,1735377044506,-500.0,0.00012897,2]
[346917741,1735377044515,-500.0,0.00012897,2]
[346917742,1735377044527,-500.0,0.00012897,2]
[346917743,1735377044537,-500.0,0.00012897,2]
[346917744,1735377044547,-2109.42,0.00012897,2]
[346917745,1735377044556,-500.0,0.00012897,2]
[346917746,1735377044565,-500.0,0.00012897,2]
[346917747,1735377044575,-500.0,0.00012897,2]
[346917748,1735377044584,-550.87,0.00012897,2]
[346917749,1735377044595,-1337.59,0.00012897,2]
[346917750,1735377044605,-500.0,0.00012897,2]
[346917751,1735377044614,-500.0,0.00012897,2]
[346917752,1735377044623,-500.0,0.00012897,2]
[346917753,1735377044633,-500.0,0.00012897,2]
[346917754,1735377044642,-500.0,0.00012897,2]
[346917755,1735377044651,-1984.67,0.00012897,2]
[346917756,1735377044661,-500.0,0.00012897,2]
[346917757,1735377044671,-533.32662257,0.00012897,2]
[346917758,1735377044680,-500.0,0.00012897,2]
[346917759,1735377044689,-500.0,0.00012897,2]
[346917760,1735377044698,-500.0,0.00012897,2]
[346917761,1735377044707,-692.23,0.00012897,2]
[346917762,1735377044716,-500.0,0.00012897,2]
[346917763,1735377044726,-565.33139796,0.00012897,2]
[346917764,1735377044735,-500.0,0.00012897,2]
[346917765,1735377044743,-500.0,0.00012897,2]
[346917766,1735377044752,-578.38,0.00012897,2]
[346917767,1735377044761,-500.0,0.00012897,2]
[346917768,1735377044770,-500.0,0.00012897,2]
[346917769,1735377044780,-500.0,0.00012897,2]
[346917770,1735377044790,-1053.97,0.00012897,2]
[346917771,1735377044799,-500.0,0.00012897,2]
[346917772,1735377044809,-500.0,0.00012897,2]
[346917773,1735377044819,-500.0,0.00012897,2]
[346917774,1735377044829,-500.0,0.00012897,2]
[346917775,1735377044838,-506.69,0.00012897,2]
[346917776,1735377044847,-500.0,0.00012897,2]
[346917777,1735377044856,-500.0,0.00012897,2]
[346917778,1735377044865,-520.89654905,0.00012897,2]
[346917779,1735377044875,-500.0,0.00012897,2]
[346917780,1735377044884,-500.0,0.00012897,2]
[346917781,1735377044893,-500.0,0.00012897,2]
[346917782,1735377044902,-500.0,0.00012897,2]
[346917783,1735377045097,-500.0,0.00012897,2]
[346917784,1735377045106,-516.00634832,0.00012897,2]
[346917785,1735377045116,-500.0,0.00012897,2]
[346917786,1735377045126,-500.0,0.00012897,2]
[346917787,1735377045135,-500.0,0.00012897,2]
[346917788,1735377045145,-500.0,0.00012897,2]
[346917789,1735377045154,-500.0,0.00012897,2]
[346917790,1735377045163,-500.0,0.00012897,2]
[346917791,1735377045173,-1487.42,0.00012897,2]
[346917792,1735377045182,-500.0,0.00012897,2]
[346917793,1735377045191,-500.0,0.00012897,2]
[346917794,1735377045200,-500.0,0.00012897,2]
[346917795,1735377045209,-500.0,0.00012897,2]
[346917796,1735377045219,-469.90601586,0.00012897,2]
[346917797,1735377045228,-500.0,0.00012897,2]
[346917798,1735377045238,-500.0,0.00012898,2]
[346917799,1735377045247,-500.0,0.00012898,2]
[346917800,1735377045256,-500.0,0.00012898,2]
[346917801,1735377045265,-500.0,0.00012898,2]
[346917802,1735377045275,-500.0,0.00012898,2]
[346917803,1735377045284,-1461.69,0.00012898,2]
[346917804,1735377045296,-500.0,0.00012898,2]
[346917805,1735377045305,-556.3,0.00012898,2]
[346917806,1735377045315,-154.847308,0.00012898,2]
[346917807,1735377045324,-447.646094,0.00012898,2]
[346917809,1735377045334,-406.67056,0.00012898,2]
[346917811,1735377045343,-1220.22,0.00012898,2]
[346917813,1735377045353,-500.0,0.00012898,2]
[346917814,1735377045362,-500.0,0.00012898,2]
[346917816,1735377045371,-500.0,0.00012898,2]
[346917817,1735377045380,-500.0,0.00012898,2]
[346917818,1735377045389,-500.0,0.00012898,2]
[346917819,1735377045399,-500.0,0.00012898,2]
[346917820,1735377045408,-500.0,0.00012898,2]
[346917821,1735377045417,-662.89,0.00012898,2]
[346917822,1735377045426,-500.0,0.00012898,2]
[346917823,1735377045435,-500.0,0.00012898,2]
[346917824,1735377045444,-500.0,0.00012898,2]
[346917825,1735377045453,-500.0,0.00012898,2]
[346917826,1735377045463,-500.0,0.00012898,2]
[346917827,1735377045472,-500.0,0.00012898,2]
[346917828,1735377045481,-500.0,0.00012898,2]
[346917829,1735377045490,-493.42069536,0.00012898,2]
[346917830,1735377045500,-500.0,0.00012898,2]
[346917831,1735377045509,-500.0,0.00012898,2]
[346917832,1735377045518,-500.0,0.00012898,2]
[346917833,1735377045527,-500.0,0.00012898,2]
[346917834,1735377045537,-500.0,0.00012898,2]
[346917835,1735377045546,-500.0,0.00012898,2]
[346917836,1735377045555,-500.0,0.00012898,2]
[346917837,1735377045564,-500.0,0.00012898,2]
[346917838,1735377045573,-500.0,0.00012898,2]
[346917839,1735377045582,-500.0,0.00012898,2]
[346917840,1735377045591,-188.79255184,0.00012898,2]
[346917841,1735377045600,-500.0,0.00012898,2]
[346917842,1735377045609,-500.0,0.00012898,2]
[346917843,1735377045619,-500.0,0.00012898,2]
[346917844,1735377045628,-500.0,0.00012898,2]
[346917845,1735377045637,-3659.43,0.00012898,2]
[346917846,1735377045646,-500.0,0.00012898,2]
[346917847,1735377045655,-500.0,0.00012898,2]
[346917848,1735377045664,-500.0,0.00012898,2]
[346917849,1735377045673,-500.0,0.00012898,2]
[346917850,1735377045681,-500.0,0.00012898,2]
[346917851,1735377045691,-500.0,0.00012898,2]
[346917852,1735377045699,-516.30981608,0.00012898,2]
[346917853,1735377045709,-501.13,0.00012898,2]
[346917854,1735377045718,-500.0,0.00012898,2]
[346917855,1735377045727,-500.0,0.00012898,2]
[346917856,1735377045735,-500.0,0.00012898,2]
[346917857,1735377045744,-500.0,0.00012898,2]
[346917858,1735377045753,-500.0,0.00012898,2]
[346917859,1735377045763,-951.63,0.00012898,2]
[346917860,1735377045772,-500.0,0.00012898,2]
[346917861,1735377045781,-500.0,0.00012898,2]
[346917862,1735377045791,-500.0,0.00012898,2]
[346917863,1735377045801,-500.0,0.00012898,2]
[346917864,1735377045811,-500.0,0.00012898,2]
[346917865,1735377045821,-500.0,0.00012898,2]
[346917866,1735377045831,-500.0,0.00012898,2]
[346917867,1735377045841,-500.0,0.00012898,2]
[346917868,1735377045850,-500.0,0.00012898,2]
[346917869,1735377045859,-570.39,0.00012898,2]
[346917870,1735377045868,-500.0,0.00012898,2]
[346917871,1735377045877,-500.0,0.00012898,2]
[346917872,1735377045887,-500.0,0.00012898,2]
[346917873,1735377045896,-500.0,0.00012898,2]
[346917874,1735377045906,-500.0,0.00012898,2]
[346917875,1735377045915,-519.69394467,0.00012898,2]
[346917876,1735377045926,-1037.41,0.00012898,2]
[346917877,1735377045935,-500.0,0.00012898,2]
[346917878,1735377045945,-500.0,0.00012898,2]
[346917879,1735377045954,-500.0,0.00012898,2]
[346917880,1735377045963,-500.0,0.00012898,2]
[346917881,1735377045973,-500.0,0.00012898,2]
[346917882,1735377045982,-500.0,0.00012898,2]
[346917883,1735377045991,-500.0,0.00012898,2]
[346917884,1735377046000,-500.0,0.00012898,2]
[346917886,1735377046010,-500.0,0.00012898,2]
[346917887,1735377046019,-500.0,0.00012898,2]
[346917888,1735377046029,-500.0,0.00012898,2]
[346917889,1735377046039,-500.0,0.00012898,2]
[346917890,1735377046049,-5164.34,0.00012898,2]
[346917891,1735377046058,-500.0,0.00012898,2]
[346917892,1735377046068,-500.0,0.00012898,2]
[346917893,1735377046078,-856.64,0.00012898,2]
[346917894,1735377046089,-500.0,0.00012898,2]
[346917895,1735377046100,-500.0,0.00012898,2]
[346917896,1735377046109,-500.0,0.00012898,2]
[346917897,1735377046119,-500.0,0.00012898,2]
[346917898,1735377046130,-901.34,0.00012898,2]
[346917899,1735377046139,-500.0,0.00012898,2]
[346917900,1735377046148,-500.0,0.00012898,2]
[346917901,1735377046157,-500.0,0.00012898,2]
[346917902,1735377046166,-500.0,0.00012898,2]
[346917903,1735377046177,-500.0,0.00012898,2]
[346917904,1735377046186,-500.0,0.00012898,2]
[346917905,1735377046195,-500.0,0.00012898,2]
[346917906,1735377046205,-500.0,0.00012898,2]
[346917907,1735377046216,-500.0,0.00012898,2]
[346917908,1735377046227,-500.0,0.00012898,2]
[346917909,1735377046237,-500.0,0.00012898,2]
[346917910,1735377046248,-500.0,0.00012898,2]
[346917911,1735377046258,-500.0,0.00012898,2]
[346917912,1735377046267,-500.0,0.00012898,2]
[346917913,1735377046277,-500.0,0.00012898,2]
[346917914,1735377046287,-500.0,0.00012898,2]
[346917915,1735377046297,-500.0,0.00012898,2]
[346917916,1735377046307,-511.4544027,0.00012898,2]
[346917917,1735377046316,-500.0,0.00012898,2]
[346917918,1735377046325,-500.0,0.00012898,2]
[346917919,1735377046335,-500.0,0.00012898,2]
[346917920,1735377046343,-500.0,0.00012898,2]
[346917921,1735377046352,-500.0,0.00012898,2]
[346917922,1735377046361,-500.0,0.00012898,2]
[346917923,1735377046370,-500.0,0.00012898,2]
[346917924,1735377046379,-500.0,0.00012898,2]
[346917925,1735377046389,-500.0,0.00012898,2]
[346917926,1735377046399,-500.0,0.00012898,2]
[346917927,1735377046407,-500.0,0.00012898,2]
[346917928,1735377046417,-500.0,0.00012898,2]
[346917929,1735377046426,-500.0,0.00012898,2]
[346917930,1735377046435,-500.0,0.00012898,2]
[346917931,1735377046444,-507.55700444,0.00012898,2]
[346917932,1735377046453,-500.0,0.00012898,2]
[346917933,1735377046462,-502.94907269,0.00012898,2]
[346917934,1735377046471,-767.16,0.00012898,2]
[346917935,1735377046480,-500.0,0.00012898,2]
[346917936,1735377046489,-500.0,0.00012898,2]
[346917937,1735377046498,-500.0,0.00012898,2]
[346917938,1735377046507,-1946.36,0.00012898,2]
[346917939,1735377046516,-500.0,0.00012898,2]
[346917940,1735377046525,-500.0,0.00012898,2]
[346917941,1735377046534,-500.0,0.00012898,2]
[346917942,1735377046544,-500.0,0.00012898,2]
[346917943,1735377046553,-500.0,0.00012898,2]
[346917944,1735377046562,-500.0,0.00012898,2]
[346917945,1735377046571,-500.0,0.00012898,2]
[346917946,1735377046580,-500.0,0.00012898,2]
[346917947,1735377046589,-500.0,0.00012898,2]
[346917948,1735377046598,-500.0,0.00012898,2]
[346917949,1735377046607,-500.0,0.00012898,2]
[346917950,1735377046615,-500.0,0.00012898,2]
[346917951,1735377046624,-500.0,0.00012898,2]
[346917952,1735377046634,-695.52,0.00012898,2]
[346917953,1735377046643,-500.0,0.00012898,2]
[346917954,1735377046653,-500.0,0.00012898,2]
[346917955,1735377046662,-500.0,0.00012898,2]
[346917956,1735377046671,-500.70184494,0.00012898,2]
[346917957,1735377046680,-1746.37,0.00012898,2]
[346917958,1735377046689,-500.0,0.00012898,2]
[346917959,1735377046698,-500.0,0.00012898,2]
[346917960,1735377046707,-500.0,0.00012898,2]
[346917961,1735377046717,-500.0,0.00012898,2]
[346917962,1735377046726,-500.0,0.00012898,2]
[346917963,1735377046735,-520.69,0.00012898,2]
[346917964,1735377046744,-500.0,0.00012898,2]
[346917965,1735377046753,-500.0,0.00012898,2]
[346917966,1735377046762,-445.0967389,0.00012898,2]
[346917967,1735377046780,-54.9032611,0.00012898,2]
[346917968,1735377046789,-500.0,0.00012898,2]
[346917969,1735377046799,-500.0,0.00012898,2]
[346917970,1735377046807,-500.0,0.00012898,2]
[346917971,1735377046817,-500.0,0.00012898,2]
[346917972,1735377046826,-500.0,0.00012898,2]
[346917973,1735377046836,-500.0,0.00012898,2]
[346917974,1735377046847,-500.0,0.00012898,2]
[346917975,1735377046857,-2056.52,0.00012898,2]
[346917976,1735377046867,-500.0,0.00012898,2]
[346917977,1735377046877,-500.0,0.00012898,2]
[346917978,1735377046887,-500.0,0.00012898,2]